[Event "*** Titled Tuesday Blitz"]
[Site "Chess.com"]
[Date "2020.05.19"]
[Round "2"]
[White "OK97"]
[Black "tsvet2005"]
[Result "1/2-1/2"]
[WhiteElo "2749"]
[BlackElo "2509"]
[TimeControl "180+1"]
[EndTime "12:18:43 PDT"]
[Termination "Game drawn by repetition"]

1. e4 {[%clk 0:03:00.9]} 1... c5 {[%clk 0:03:00.3]} 2. Nf3 {[%clk 0:03:00.7]}
2... d6 {[%clk 0:03:00.9]} 3. d4 {[%clk 0:03:01.1]} 3... cxd4 {[%clk 0:03:01.8]}
4. Nxd4 {[%clk 0:03:02]} 4... Nf6 {[%clk 0:03:02.4]} 5. Nc3 {[%clk 0:03:02.4]}
5... a6 {[%clk 0:03:03]} 6. h4 {[%clk 0:03:02.7]} 6... e5 {[%clk 0:03:02.7]} 7.
Nb3 {[%clk 0:03:03.2]} 7... Be6 {[%clk 0:03:02.7]} 8. f4 {[%clk 0:03:03.3]} 8...
g6 {[%clk 0:02:43.1]} 9. fxe5 {[%clk 0:02:39.1]} 9... dxe5 {[%clk 0:02:44]} 10.
Qxd8+ {[%clk 0:02:39.7]} 10... Kxd8 {[%clk 0:02:44.6]} 11. Bg5 {[%clk
0:02:40.6]} 11... Nd7 {[%clk 0:02:31.2]} 12. O-O-O {[%clk 0:02:40.4]} 12... Kc7
{[%clk 0:02:31.1]} 13. Be2 {[%clk 0:02:24.7]} 13... h6 {[%clk 0:02:25.2]} 14.
Nd5+ {[%clk 0:02:18]} 14... Bxd5 {[%clk 0:02:12.7]} 15. Bxf6 {[%clk 0:02:18.1]}
15... Nxf6 {[%clk 0:02:12.8]} 16. exd5 {[%clk 0:02:18.4]} 16... Ne4 {[%clk
0:02:06.3]} 17. h5 {[%clk 0:01:53.7]} 17... Be7 {[%clk 0:01:46.6]} 18. Rhf1
{[%clk 0:01:43.3]} 18... Rhf8 {[%clk 0:01:45.9]} 19. Bf3 {[%clk 0:01:36.9]}
19... Ng3 {[%clk 0:01:38]} 20. Rfe1 {[%clk 0:01:37]} 20... Bd6 {[%clk
0:01:32.6]} 21. hxg6 {[%clk 0:01:34.6]} 21... fxg6 {[%clk 0:01:33.5]} 22. Nd2
{[%clk 0:01:28.3]} 22... Rae8 {[%clk 0:01:26.2]} 23. Ne4 {[%clk 0:01:23.7]}
23... Nxe4 {[%clk 0:01:24.4]} 24. Rxe4 {[%clk 0:01:23.9]} 24... Rf4 {[%clk
0:01:22.1]} 25. Rh1 {[%clk 0:01:11.2]} 25... h5 {[%clk 0:01:17.8]} 26. Rhe1
{[%clk 0:01:11.2]} 26... Ref8 {[%clk 0:01:16.3]} 27. Kd2 {[%clk 0:01:01.5]}
27... Rxe4 {[%clk 0:01:13.6]} 28. Rxe4 {[%clk 0:00:53.5]} 28... b5 {[%clk
0:01:03.8]} 29. a4 {[%clk 0:00:52.1]} 29... Kb6 {[%clk 0:01:03.5]} 30. axb5
{[%clk 0:00:43.7]} 30... axb5 {[%clk 0:01:04.4]} 31. Re1 {[%clk 0:00:41.6]}
31... Kc5 {[%clk 0:00:59.2]} 32. Ra1 {[%clk 0:00:40.8]} 32... Re8 {[%clk
0:00:46.4]} 33. Ra6 {[%clk 0:00:37.6]} 33... e4 {[%clk 0:00:44.7]} 34. Be2
{[%clk 0:00:33.1]} 34... Kxd5 {[%clk 0:00:43.1]} 35. Bxb5 {[%clk 0:00:32.6]}
35... Rf8 {[%clk 0:00:43.3]} 36. Bc6+ {[%clk 0:00:19.5]} 36... Ke5 {[%clk
0:00:29.5]} 37. Ra5+ {[%clk 0:00:16.5]} 37... Ke6 {[%clk 0:00:27.5]} 38. Bd5+
{[%clk 0:00:15]} 38... Ke5 {[%clk 0:00:24.8]} 39. Bc4+ {[%clk 0:00:09.8]} 39...
Kd4 {[%clk 0:00:16]} 40. Ra4 {[%clk 0:00:10.1]} 40... Ke5 {[%clk 0:00:15.2]} 41.
Ra5+ {[%clk 0:00:08.6]} 41... Kd4 {[%clk 0:00:15.1]} 42. Ra4 {[%clk 0:00:09.1]}
42... Ke5 {[%clk 0:00:15.4]} 43. Ra5+ {[%clk 0:00:09.7]} 1/2-1/2

[Event "*** Titled Tuesday Blitz"]
[Site "Chess.com"]
[Date "2020.05.19"]
[Round "2"]
[White "JoachimMouhamad"]
[Black "GMStefanova"]
[Result "0-1"]
[WhiteElo "2312"]
[BlackElo "2612"]
[TimeControl "180+1"]
[EndTime "12:18:44 PDT"]
[Termination "GMStefanova won by resignation"]

1. e4 {[%clk 0:03:00.9]} 1... e5 {[%clk 0:02:59.7]} 2. Nf3 {[%clk 0:03:00.3]}
2... Nc6 {[%clk 0:02:59.9]} 3. Bb5 {[%clk 0:02:56.3]} 3... a6 {[%clk 0:03:00]}
4. Ba4 {[%clk 0:02:55.8]} 4... g6 {[%clk 0:03:00.4]} 5. O-O {[%clk 0:02:50]}
5... Bg7 {[%clk 0:02:59.9]} 6. c3 {[%clk 0:02:46.2]} 6... Nge7 {[%clk
0:02:59.1]} 7. d4 {[%clk 0:02:43.4]} 7... b5 {[%clk 0:02:59]} 8. Bc2 {[%clk
0:02:42.5]} 8... exd4 {[%clk 0:02:58.5]} 9. cxd4 {[%clk 0:02:42.3]} 9... O-O
{[%clk 0:02:55.5]} 10. h3 {[%clk 0:02:36.4]} 10... d5 {[%clk 0:02:46.7]} 11. e5
{[%clk 0:02:26.4]} 11... Nb4 {[%clk 0:02:42.3]} 12. Bb3 {[%clk 0:02:20.3]} 12...
Bf5 {[%clk 0:02:35.4]} 13. Be3 {[%clk 0:02:00.9]} 13... a5 {[%clk 0:02:23.4]}
14. a3 {[%clk 0:01:55.2]} 14... Nd3 {[%clk 0:02:10]} 15. Qd2 {[%clk 0:01:53.1]}
15... a4 {[%clk 0:02:03.6]} 16. Bd1 {[%clk 0:01:49.5]} 16... c5 {[%clk
0:01:59.4]} 17. dxc5 {[%clk 0:01:37.8]} 17... Nc6 {[%clk 0:01:51.6]} 18. Nc3
{[%clk 0:01:32.2]} 18... d4 {[%clk 0:01:44.8]} 19. Nxd4 {[%clk 0:00:59.9]} 19...
Nxd4 {[%clk 0:01:43.4]} 20. g4 {[%clk 0:01:00.5]} 20... Nxe5 {[%clk 0:01:26.3]}
21. Bxd4 {[%clk 0:00:52.4]} 21... Nc4 {[%clk 0:01:25.3]} 22. Qf4 {[%clk
0:00:48.1]} 22... Qxd4 {[%clk 0:01:21.5]} 23. Qxd4 {[%clk 0:00:45.7]} 23... Bxd4
{[%clk 0:01:22.2]} 24. gxf5 {[%clk 0:00:42.9]} 24... Bxc3 {[%clk 0:01:07.6]} 25.
bxc3 {[%clk 0:00:42.2]} 25... Rac8 {[%clk 0:01:06.3]} 26. fxg6 {[%clk
0:00:41.2]} 26... hxg6 {[%clk 0:01:05.4]} 27. Be2 {[%clk 0:00:34.2]} 27... Rxc5
{[%clk 0:01:05.3]} 28. Bxc4 {[%clk 0:00:31.2]} 28... Rxc4 {[%clk 0:01:04.6]} 29.
Rab1 {[%clk 0:00:30.7]} 29... Rxc3 {[%clk 0:00:58.3]} 30. Rxb5 {[%clk
0:00:30.1]} 30... Rxa3 {[%clk 0:00:57.9]} 31. Kg2 {[%clk 0:00:29.6]} 31... Ra8
{[%clk 0:00:54.1]} 32. Rfb1 {[%clk 0:00:29.2]} 32... Kg7 {[%clk 0:00:49.3]} 33.
Rb7 {[%clk 0:00:27.1]} 33... Rc3 {[%clk 0:00:44.3]} 34. Rb8 {[%clk 0:00:22.6]}
34... Ra5 {[%clk 0:00:39.8]} 35. R1b5 {[%clk 0:00:22.7]} 35... Rxb5 {[%clk
0:00:37.7]} 36. Rxb5 {[%clk 0:00:21.9]} 36... a3 {[%clk 0:00:37.7]} 37. Ra5
{[%clk 0:00:21.8]} 37... Kf6 {[%clk 0:00:32.5]} 38. f3 {[%clk 0:00:20.9]} 38...
Ke6 {[%clk 0:00:30.3]} 39. Kg3 {[%clk 0:00:21.2]} 39... Kd6 {[%clk 0:00:27.4]}
40. Kg4 {[%clk 0:00:20.7]} 40... Kc6 {[%clk 0:00:26.8]} 41. Ra7 {[%clk
0:00:19.9]} 41... Kb5 {[%clk 0:00:23.5]} 42. Rxf7 {[%clk 0:00:18.2]} 42... Rc4+
{[%clk 0:00:22.1]} 43. Kg5 {[%clk 0:00:17.1]} 43... a2 {[%clk 0:00:21.3]} 44.
Rb7+ {[%clk 0:00:12.3]} 44... Ka6 {[%clk 0:00:20.4]} 45. Rb8 {[%clk 0:00:12.5]}
45... Rc7 {[%clk 0:00:20.3]} 46. Ra8+ {[%clk 0:00:10.6]} 46... Ra7 {[%clk
0:00:20.2]} 0-1

[Event "*** Titled Tuesday Blitz"]
[Site "Chess.com"]
[Date "2020.05.19"]
[Round "2"]
[White "aaronmaster123"]
[Black "Alopekos"]
[Result "0-1"]
[WhiteElo "2258"]
[BlackElo "2461"]
[TimeControl "180+1"]
[EndTime "12:18:44 PDT"]
[Termination "Alopekos won by resignation"]

1. Nf3 {[%clk 0:03:00.9]} 1... Nf6 {[%clk 0:02:55.1]} 2. g3 {[%clk 0:02:59.6]}
2... d5 {[%clk 0:02:53.5]} 3. Bg2 {[%clk 0:03:00.5]} 3... e6 {[%clk 0:02:53.7]}
4. O-O {[%clk 0:03:00.5]} 4... Be7 {[%clk 0:02:54.2]} 5. d3 {[%clk 0:03:00.1]}
5... c5 {[%clk 0:02:53.1]} 6. Nbd2 {[%clk 0:03:00.4]} 6... Nc6 {[%clk
0:02:53.6]} 7. e4 {[%clk 0:02:59.9]} 7... b5 {[%clk 0:02:53.4]} 8. Re1 {[%clk
0:02:55]} 8... O-O {[%clk 0:02:49.8]} 9. h4 {[%clk 0:02:50.9]} 9... c4 {[%clk
0:02:26.7]} 10. exd5 {[%clk 0:02:36.3]} 10... exd5 {[%clk 0:02:24.2]} 11. dxc4
{[%clk 0:02:31]} 11... bxc4 {[%clk 0:02:23.1]} 12. Nf1 {[%clk 0:02:07.7]} 12...
Ne4 {[%clk 0:01:46.7]} 13. Ne3 {[%clk 0:02:00.9]} 13... Be6 {[%clk 0:01:46.5]}
14. Nxc4 {[%clk 0:01:39.3]} 14... Nxf2 {[%clk 0:01:33.1]} 15. Kxf2 {[%clk
0:01:38.3]} 15... dxc4 {[%clk 0:01:33.6]} 16. Qxd8 {[%clk 0:01:34.2]} 16...
Rfxd8 {[%clk 0:01:34.5]} 17. Bf4 {[%clk 0:01:08.4]} 17... Bc5+ {[%clk
0:01:20.8]} 18. Be3 {[%clk 0:01:08.2]} 18... Bxe3+ {[%clk 0:01:21.3]} 19. Rxe3
{[%clk 0:01:06.5]} 19... Rab8 {[%clk 0:00:50.7]} 20. b3 {[%clk 0:01:00.4]} 20...
Nb4 {[%clk 0:00:48.9]} 21. Rc3 {[%clk 0:00:52.6]} 21... Rbc8 {[%clk 0:00:21.5]}
22. a3 {[%clk 0:00:52.7]} 22... cxb3 {[%clk 0:00:15.5]} 23. Rxc8 {[%clk
0:00:50.8]} 23... Rxc8 {[%clk 0:00:16.4]} 24. axb4 {[%clk 0:00:46.8]} 24...
Rxc2+ {[%clk 0:00:16.3]} 25. Ke3 {[%clk 0:00:33.8]} 25... b2 {[%clk 0:00:16.6]}
26. Rd1 {[%clk 0:00:32.9]} 26... g6 {[%clk 0:00:09.5]} 27. Nd2 {[%clk
0:00:30.6]} 27... Rc1 {[%clk 0:00:06.5]} 28. Bf3 {[%clk 0:00:16.7]} 28... Bb3
{[%clk 0:00:05.5]} 29. Nxb3 {[%clk 0:00:14.8]} 29... Rxd1 {[%clk 0:00:03.8]} 30.
Be4 {[%clk 0:00:11.7]} 30... b1=Q {[%clk 0:00:03.2]} 31. Bxb1 {[%clk 0:00:10.8]}
31... Rxb1 {[%clk 0:00:04.1]} 32. Nc5 {[%clk 0:00:08.7]} 32... Rxb4 {[%clk
0:00:04.3]} 33. g4 {[%clk 0:00:07.2]} 33... Rxg4 {[%clk 0:00:03.7]} 34. h5
{[%clk 0:00:06.8]} 34... Kg7 {[%clk 0:00:02.4]} 35. Nd7 {[%clk 0:00:07.7]} 35...
Rh4 {[%clk 0:00:02.1]} 36. Ne5 {[%clk 0:00:08.3]} 36... Rxh5 {[%clk 0:00:02.4]}
37. Nc6 {[%clk 0:00:09.1]} 37... a5 {[%clk 0:00:02.5]} 38. Na7 {[%clk
0:00:09.2]} 38... a4 {[%clk 0:00:03.4]} 39. Nc6 {[%clk 0:00:08.3]} 39... a3
{[%clk 0:00:04.3]} 40. Nb4 {[%clk 0:00:09.1]} 40... Rb5 {[%clk 0:00:03.5]} 41.
Na2 {[%clk 0:00:09.5]} 41... Rb2 {[%clk 0:00:03.9]} 42. Nc3 {[%clk 0:00:10.1]}
42... a2 {[%clk 0:00:04.8]} 43. Nxa2 {[%clk 0:00:10.4]} 43... Rxa2 {[%clk
0:00:05.7]} 44. Kf4 {[%clk 0:00:10.8]} 44... Ra5 {[%clk 0:00:06.6]} 0-1

[Event "*** Titled Tuesday Blitz"]
[Site "Chess.com"]
[Date "2020.05.19"]
[Round "2"]
[White "besarquis"]
[Black "rdclayton"]
[Result "1-0"]
[WhiteElo "2201"]
[BlackElo "2387"]
[TimeControl "180+1"]
[EndTime "12:18:46 PDT"]
[Termination "besarquis won on time"]

1. e4 {[%clk 0:03:00.9]} 1... e5 {[%clk 0:02:59.6]} 2. Nf3 {[%clk 0:03:00.3]}
2... Nc6 {[%clk 0:03:00.1]} 3. Bc4 {[%clk 0:02:59.9]} 3... Nf6 {[%clk
0:02:59.1]} 4. d3 {[%clk 0:02:57.8]} 4... Bc5 {[%clk 0:02:58.6]} 5. c3 {[%clk
0:02:56.3]} 5... a6 {[%clk 0:02:58.6]} 6. Nbd2 {[%clk 0:02:54.9]} 6... O-O
{[%clk 0:02:52.9]} 7. O-O {[%clk 0:02:51.9]} 7... d6 {[%clk 0:02:52.4]} 8. Bb3
{[%clk 0:02:51.6]} 8... Ne7 {[%clk 0:02:49.2]} 9. h3 {[%clk 0:02:50.3]} 9... Ng6
{[%clk 0:02:48.9]} 10. Re1 {[%clk 0:02:50.9]} 10... Ba7 {[%clk 0:02:42.3]} 11.
Nf1 {[%clk 0:02:50.5]} 11... h6 {[%clk 0:02:40.7]} 12. Ng3 {[%clk 0:02:50]}
12... c6 {[%clk 0:02:36.2]} 13. d4 {[%clk 0:02:47.4]} 13... exd4 {[%clk
0:02:31.5]} 14. cxd4 {[%clk 0:02:47]} 14... Re8 {[%clk 0:02:22.5]} 15. Qd3
{[%clk 0:02:32.2]} 15... d5 {[%clk 0:02:11.6]} 16. e5 {[%clk 0:02:25.2]} 16...
Ne4 {[%clk 0:02:10.9]} 17. Nxe4 {[%clk 0:02:19.6]} 17... Bf5 {[%clk 0:02:09.6]}
18. Bd2 {[%clk 0:01:30.9]} 18... dxe4 {[%clk 0:01:20.7]} 19. Qc2 {[%clk
0:00:59.8]} 19... Nh4 {[%clk 0:01:05.8]} 20. Nxh4 {[%clk 0:00:50.4]} 20... Qxh4
{[%clk 0:01:06.7]} 21. Be3 {[%clk 0:00:50.3]} 21... Rad8 {[%clk 0:01:00.7]} 22.
Rad1 {[%clk 0:00:48.6]} 22... Rd7 {[%clk 0:00:38.5]} 23. f3 {[%clk 0:00:47.8]}
23... Red8 {[%clk 0:00:30.6]} 24. e6 {[%clk 0:00:31.6]} 24... Bxe6 {[%clk
0:00:21]} 25. Bf2 {[%clk 0:00:25.2]} 25... Qf6 {[%clk 0:00:16.7]} 26. Bxe6
{[%clk 0:00:22.2]} 26... fxe6 {[%clk 0:00:15.9]} 27. Qxe4 {[%clk 0:00:22.1]}
27... Kf7 {[%clk 0:00:12.6]} 28. Bh4 {[%clk 0:00:19.9]} 28... g5 {[%clk
0:00:08.9]} 29. Bg3 {[%clk 0:00:19.5]} 29... Qf5 {[%clk 0:00:09.4]} 30. Qe2
{[%clk 0:00:18.5]} 30... Bxd4+ {[%clk 0:00:08.3]} 31. Kh2 {[%clk 0:00:19]} 31...
e5 {[%clk 0:00:08.6]} 32. h4 {[%clk 0:00:17.7]} 32... Kg6 {[%clk 0:00:05.8]} 33.
hxg5 {[%clk 0:00:17.6]} 33... hxg5 {[%clk 0:00:06.7]} 34. Bf2 {[%clk 0:00:15.2]}
34... Rh7+ {[%clk 0:00:07]} 35. Kg1 {[%clk 0:00:15.3]} 35... Rdh8 {[%clk
0:00:03.7]} 36. Bxd4 {[%clk 0:00:12.6]} 36... exd4 {[%clk 0:00:03.1]} 37. Rxd4
{[%clk 0:00:11.6]} 37... Rh1+ {[%clk 0:00:02.3]} 38. Kf2 {[%clk 0:00:12]} 38...
Qf6 {[%clk 0:00:02.6]} 39. Qe4+ {[%clk 0:00:11.3]} 1-0

[Event "*** Titled Tuesday Blitz"]
[Site "Chess.com"]
[Date "2020.05.19"]
[Round "2"]
[White "BocharovD"]
[Black "GMBenjaminFinegold"]
[Result "1-0"]
[WhiteElo "2838"]
[BlackElo "2531"]
[TimeControl "180+1"]
[EndTime "12:18:47 PDT"]
[Termination "BocharovD won by resignation"]

1. c4 {[%clk 0:03:00.9]} 1... b6 {[%clk 0:02:59.5]} 2. d4 {[%clk 0:02:55.1]}
2... Bb7 {[%clk 0:02:58.8]} 3. Nc3 {[%clk 0:02:53.2]} 3... e6 {[%clk 0:02:57.4]}
4. a3 {[%clk 0:02:51.8]} 4... f5 {[%clk 0:02:55.3]} 5. Nf3 {[%clk 0:02:48.7]}
5... Nf6 {[%clk 0:02:53.4]} 6. d5 {[%clk 0:02:41.5]} 6... Bc5 {[%clk 0:02:48.5]}
7. g3 {[%clk 0:02:39]} 7... O-O {[%clk 0:02:30]} 8. Bg2 {[%clk 0:02:38.1]} 8...
a5 {[%clk 0:02:30.2]} 9. O-O {[%clk 0:02:36.6]} 9... Na6 {[%clk 0:02:30]} 10.
Nd4 {[%clk 0:02:35.1]} 10... Qe8 {[%clk 0:02:11.3]} 11. b3 {[%clk 0:02:28.1]}
11... Bd6 {[%clk 0:02:00.6]} 12. dxe6 {[%clk 0:02:12.6]} 12... Bxg2 {[%clk
0:01:57]} 13. exd7 {[%clk 0:02:11.8]} 13... Qxd7 {[%clk 0:01:55.2]} 14. Kxg2
{[%clk 0:02:11.8]} 14... Nc5 {[%clk 0:01:51.8]} 15. Bb2 {[%clk 0:02:09.2]} 15...
Rad8 {[%clk 0:01:48.9]} 16. e3 {[%clk 0:02:08.7]} 16... Be5 {[%clk 0:01:46.1]}
17. Qc2 {[%clk 0:01:58.7]} 17... Nfe4 {[%clk 0:01:45.1]} 18. Rad1 {[%clk
0:01:56.3]} 18... Nxc3 {[%clk 0:01:36.4]} 19. Bxc3 {[%clk 0:01:55.3]} 19... Ne4
{[%clk 0:01:33.2]} 20. Nf3 {[%clk 0:01:51]} 20... Bd6 {[%clk 0:01:20.4]} 21. Be5
{[%clk 0:01:48.9]} 21... Qe7 {[%clk 0:01:17.5]} 22. Bxd6 {[%clk 0:01:48.4]}
22... Rxd6 {[%clk 0:01:17.1]} 23. Rxd6 {[%clk 0:01:46.8]} 23... Qxd6 {[%clk
0:01:17.4]} 24. Qb2 {[%clk 0:01:23]} 24... Rd8 {[%clk 0:01:13.9]} 25. b4 {[%clk
0:01:19.2]} 25... axb4 {[%clk 0:01:12.4]} 26. axb4 {[%clk 0:01:20.1]} 26... h6
{[%clk 0:01:09.9]} 27. Ra1 {[%clk 0:01:17.8]} 27... Kh7 {[%clk 0:01:07.7]} 28.
Qd4 {[%clk 0:01:15.3]} 28... Qe7 {[%clk 0:01:01.8]} 29. Qb2 {[%clk 0:01:12.7]}
29... Rd3 {[%clk 0:00:55.3]} 30. Ra2 {[%clk 0:01:01.9]} 30... Ng5 {[%clk
0:00:53.8]} 31. Qe5 {[%clk 0:00:57.5]} 31... Qxe5 {[%clk 0:00:47.3]} 32. Nxe5
{[%clk 0:00:57.5]} 32... Rb3 {[%clk 0:00:46.2]} 33. b5 {[%clk 0:00:57]} 33...
Ne4 {[%clk 0:00:43.9]} 34. h4 {[%clk 0:00:57.1]} 34... Rc3 {[%clk 0:00:37.1]}
35. h5 {[%clk 0:00:56.3]} 35... g5 {[%clk 0:00:19.4]} 36. hxg6+ {[%clk
0:00:56.1]} 36... Kg7 {[%clk 0:00:19.9]} 37. Ra7 {[%clk 0:00:55.4]} 37... Kf6
{[%clk 0:00:19.9]} 38. g7 {[%clk 0:00:52.4]} 38... Kxg7 {[%clk 0:00:19.7]} 39.
Rxc7+ {[%clk 0:00:52.8]} 39... Kf6 {[%clk 0:00:20.4]} 40. Nd7+ {[%clk
0:00:53.3]} 40... Ke6 {[%clk 0:00:19.9]} 41. Nxb6 {[%clk 0:00:50.9]} 41... Rc2
{[%clk 0:00:19]} 42. Rc6+ {[%clk 0:00:51.3]} 42... Kf7 {[%clk 0:00:17.6]} 43.
Nd5 {[%clk 0:00:49.6]} 43... Rxf2+ {[%clk 0:00:17.5]} 44. Kg1 {[%clk 0:00:50]}
44... Rc2 {[%clk 0:00:15.1]} 45. Rxh6 {[%clk 0:00:47]} 45... Nxg3 {[%clk
0:00:14.5]} 46. b6 {[%clk 0:00:43.5]} 46... Rb2 {[%clk 0:00:14.1]} 47. b7 {[%clk
0:00:42.2]} 47... f4 {[%clk 0:00:12.6]} 48. Rb6 {[%clk 0:00:41.4]} 48... Ne2+
{[%clk 0:00:08.9]} 49. Kf1 {[%clk 0:00:41.2]} 49... Ng3+ {[%clk 0:00:09.5]} 50.
Ke1 {[%clk 0:00:41.6]} 50... Re2+ {[%clk 0:00:10.1]} 51. Kd1 {[%clk 0:00:42.1]}
51... f3 {[%clk 0:00:09.7]} 52. b8=Q {[%clk 0:00:41.3]} 52... f2 {[%clk
0:00:10.3]} 53. Qf4+ {[%clk 0:00:41]} 1-0

[Event "*** Titled Tuesday Blitz"]
[Site "Chess.com"]
[Date "2020.05.19"]
[Round "2"]
[White "Goryachkina"]
[Black "FMVolodymyrSakun"]
[Result "0-1"]
[WhiteElo "2434"]
[BlackElo "2475"]
[TimeControl "180+1"]
[EndTime "12:18:47 PDT"]
[Termination "FMVolodymyrSakun won on time"]

1. e4 {[%clk 0:03:00.9]} 1... c5 {[%clk 0:02:58]} 2. Nf3 {[%clk 0:03:00.5]} 2...
g6 {[%clk 0:02:57.9]} 3. c3 {[%clk 0:03:00]} 3... Bg7 {[%clk 0:02:57.2]} 4. d4
{[%clk 0:03:00]} 4... cxd4 {[%clk 0:02:57.8]} 5. cxd4 {[%clk 0:02:59.7]} 5... d5
{[%clk 0:02:58.3]} 6. e5 {[%clk 0:02:59.7]} 6... Nc6 {[%clk 0:02:58.3]} 7. Bb5
{[%clk 0:02:52.9]} 7... Nh6 {[%clk 0:02:55.5]} 8. h3 {[%clk 0:02:48.5]} 8... O-O
{[%clk 0:02:54.4]} 9. O-O {[%clk 0:02:47.3]} 9... Bd7 {[%clk 0:02:49.2]} 10. Nc3
{[%clk 0:02:45]} 10... Na5 {[%clk 0:02:31.7]} 11. Bxd7 {[%clk 0:02:15.7]} 11...
Qxd7 {[%clk 0:02:30.7]} 12. Bf4 {[%clk 0:02:15.8]} 12... Rac8 {[%clk 0:02:24.7]}
13. Qc1 {[%clk 0:01:55.1]} 13... Nf5 {[%clk 0:02:06.6]} 14. g4 {[%clk
0:01:54.2]} 14... f6 {[%clk 0:01:43.3]} 15. exf6 {[%clk 0:01:19.7]} 15... Bxf6
{[%clk 0:01:10.8]} 16. gxf5 {[%clk 0:01:16.9]} 16... Qxf5 {[%clk 0:01:10.9]} 17.
Kg2 {[%clk 0:01:07.9]} 17... Bg7 {[%clk 0:01:05.2]} 18. Re1 {[%clk 0:00:58.7]}
18... Qxf4 {[%clk 0:01:02.5]} 19. Qxf4 {[%clk 0:00:58.3]} 19... Rxf4 {[%clk
0:01:02.4]} 20. Rxe7 {[%clk 0:00:55.8]} 20... Rcf8 {[%clk 0:00:54.8]} 21. Re3
{[%clk 0:00:29.5]} 21... Nc4 {[%clk 0:00:54.5]} 22. Rd3 {[%clk 0:00:29.6]} 22...
Nxb2 {[%clk 0:00:54.5]} 23. Re3 {[%clk 0:00:29.8]} 23... Nc4 {[%clk 0:00:54.4]}
24. Rd3 {[%clk 0:00:29.8]} 24... R4f5 {[%clk 0:00:47.3]} 25. Rf1 {[%clk
0:00:20.4]} 25... Re8 {[%clk 0:00:45.9]} 26. Nd2 {[%clk 0:00:11.7]} 26... Rc8
{[%clk 0:00:37.9]} 27. Nb3 {[%clk 0:00:09.8]} 27... Nb2 {[%clk 0:00:36.2]} 28.
Rg3 {[%clk 0:00:09.4]} 28... Bf8 {[%clk 0:00:32.6]} 29. Ne2 {[%clk 0:00:03.6]}
29... Rc2 {[%clk 0:00:29.1]} 30. Nec1 {[%clk 0:00:03.7]} 30... Nc4 {[%clk
0:00:21.6]} 31. Rf3 {[%clk 0:00:03.1]} 31... Rxf3 {[%clk 0:00:20.4]} 32. Kxf3
{[%clk 0:00:03.4]} 32... Nd2+ {[%clk 0:00:20.3]} 33. Nxd2 {[%clk 0:00:03]} 33...
Rxd2 {[%clk 0:00:20.7]} 34. Re1 {[%clk 0:00:03.4]} 34... Rxd4 {[%clk 0:00:20.3]}
35. Nb3 {[%clk 0:00:02.8]} 35... Rb4 {[%clk 0:00:19.8]} 36. Re8 {[%clk
0:00:02.2]} 36... Kf7 {[%clk 0:00:18.7]} 37. Rd8 {[%clk 0:00:02.5]} 37... Rb5
{[%clk 0:00:17.8]} 38. Nd4 {[%clk 0:00:01.7]} 38... Rb6 {[%clk 0:00:17.8]} 39.
Rd7+ {[%clk 0:00:01.6]} 39... Ke8 {[%clk 0:00:16.6]} 40. Rxh7 {[%clk 0:00:01.7]}
40... Bc5 {[%clk 0:00:16.5]} 41. Ne2 {[%clk 0:00:01.3]} 41... Rf6+ {[%clk
0:00:16.4]} 0-1

[Event "*** Titled Tuesday Blitz"]
[Site "Chess.com"]
[Date "2020.05.19"]
[Round "2"]
[White "Novoselski"]
[Black "Megagigahiper3345"]
[Result "0-1"]
[WhiteElo "2327"]
[BlackElo "2631"]
[TimeControl "180+1"]
[EndTime "12:18:48 PDT"]
[Termination "Megagigahiper3345 won by resignation"]

1. d4 {[%clk 0:03:00.9]} 1... f5 {[%clk 0:02:59.9]} 2. c4 {[%clk 0:03:01.8]}
2... Nf6 {[%clk 0:03:00.1]} 3. g3 {[%clk 0:03:01.6]} 3... e6 {[%clk 0:02:59.7]}
4. Bg2 {[%clk 0:03:01.9]} 4... Be7 {[%clk 0:02:53.4]} 5. Nf3 {[%clk 0:03:01.5]}
5... O-O {[%clk 0:02:52.9]} 6. O-O {[%clk 0:03:02.4]} 6... d6 {[%clk 0:02:52.9]}
7. Nc3 {[%clk 0:03:01.5]} 7... a5 {[%clk 0:02:52.3]} 8. Qc2 {[%clk 0:03:00.8]}
8... Nc6 {[%clk 0:02:52.3]} 9. Rd1 {[%clk 0:02:58.6]} 9... Qe8 {[%clk
0:02:51.2]} 10. e4 {[%clk 0:02:50.8]} 10... Nb4 {[%clk 0:02:49.4]} 11. Qe2
{[%clk 0:02:49.2]} 11... Nxe4 {[%clk 0:02:49.8]} 12. Nxe4 {[%clk 0:02:47.9]}
12... fxe4 {[%clk 0:02:50.7]} 13. Qxe4 {[%clk 0:02:47.8]} 13... e5 {[%clk
0:02:51.4]} 14. a3 {[%clk 0:02:18.7]} 14... Nc6 {[%clk 0:02:14.7]} 15. dxe5
{[%clk 0:02:14.6]} 15... Bf5 {[%clk 0:02:15.1]} 16. Qd5+ {[%clk 0:02:10.5]}
16... Kh8 {[%clk 0:02:15.4]} 17. Ng5 {[%clk 0:02:07.6]} 17... dxe5 {[%clk
0:02:11]} 18. Ne6 {[%clk 0:02:05.6]} 18... Bxe6 {[%clk 0:02:01.7]} 19. Qxe6
{[%clk 0:02:06.5]} 19... Rxf2 {[%clk 0:01:54.3]} 20. Be3 {[%clk 0:02:01]} 20...
Rxb2 {[%clk 0:01:26.9]} 21. Rd7 {[%clk 0:01:53.6]} 21... Bf6 {[%clk 0:00:30.9]}
22. Qxe8+ {[%clk 0:01:52.1]} 22... Rxe8 {[%clk 0:00:31.8]} 23. Rxc7 {[%clk
0:01:50.2]} 23... Nd4 {[%clk 0:00:30.5]} 24. Bxb7 {[%clk 0:01:47.4]} 24... Bd8
{[%clk 0:00:20.4]} 25. Rf7 {[%clk 0:01:42.6]} 25... Bb6 {[%clk 0:00:20]} 26. Kh1
{[%clk 0:01:39.7]} 26... Bc5 {[%clk 0:00:16.2]} 27. Bd5 {[%clk 0:01:36.7]} 27...
h6 {[%clk 0:00:13.4]} 28. a4 {[%clk 0:01:33.7]} 28... Rf8 {[%clk 0:00:12.5]} 29.
Rxf8+ {[%clk 0:01:29.5]} 29... Bxf8 {[%clk 0:00:13.4]} 30. Rf1 {[%clk
0:01:27.8]} 30... Bc5 {[%clk 0:00:13.7]} 31. Rf7 {[%clk 0:01:25.6]} 31... Rb1+
{[%clk 0:00:12.3]} 32. Kg2 {[%clk 0:01:24.2]} 32... Rb2+ {[%clk 0:00:13]} 33.
Kh3 {[%clk 0:01:22.9]} 33... Bb4 {[%clk 0:00:12.4]} 34. Be4 {[%clk 0:01:20.5]}
34... Kg8 {[%clk 0:00:12.3]} 35. Rd7 {[%clk 0:01:16.2]} 35... Kf8 {[%clk
0:00:12.1]} 36. Bg6 {[%clk 0:01:14.3]} 36... Be7 {[%clk 0:00:10.9]} 37. c5
{[%clk 0:01:07]} 37... Bxc5 {[%clk 0:00:08.3]} 38. Rf7+ {[%clk 0:01:04.6]} 38...
Kg8 {[%clk 0:00:08.8]} 39. Rc7 {[%clk 0:01:02.1]} 39... Bf8 {[%clk 0:00:08.9]}
40. Bc1 {[%clk 0:00:59.8]} 40... Rb6 {[%clk 0:00:07.7]} 41. Ba3 {[%clk 0:00:58]}
41... Rxg6 {[%clk 0:00:04.9]} 42. Rc8 {[%clk 0:00:57.5]} 42... Rf6 {[%clk
0:00:05.5]} 43. Ra8 {[%clk 0:00:56.4]} 43... Ne6 {[%clk 0:00:05.7]} 44. Be7
{[%clk 0:00:52.6]} 44... Rf7 {[%clk 0:00:05.5]} 45. Bd6 {[%clk 0:00:51.2]} 45...
Kh7 {[%clk 0:00:05.8]} 46. Bxf8 {[%clk 0:00:49.7]} 46... Nxf8 {[%clk 0:00:05.6]}
47. Rxa5 {[%clk 0:00:49.9]} 47... Ng6 {[%clk 0:00:06]} 48. Rb5 {[%clk
0:00:48.2]} 48... Rf2 {[%clk 0:00:06.6]} 49. Rb4 {[%clk 0:00:46.7]} 49... Ra2
{[%clk 0:00:07]} 50. g4 {[%clk 0:00:46]} 50... Ne7 {[%clk 0:00:07.4]} 51. Kg3
{[%clk 0:00:44.4]} 51... Nd5 {[%clk 0:00:07.9]} 52. Re4 {[%clk 0:00:43.4]} 52...
Ra3+ {[%clk 0:00:07.7]} 53. Kf2 {[%clk 0:00:42.2]} 53... Nf4 {[%clk 0:00:08.4]}
54. Rxe5 {[%clk 0:00:40.3]} 54... Nd3+ {[%clk 0:00:08.4]} 0-1